Cogmind - Beta 14 @@@ ROGUE MODE // 2025.01.11 @ 19:27:03 Player: Mathewnd Result: Destroyed by Enhanced Grunt with Neutron Cannon Performance ------------- Evolutions (4) 2000 Regions Visited (8) 1600 Robots Destroyed (143) 715 Value Destroyed (4458) 4458 Prototype IDs (7) 140 Alien Tech Used (0) 0 Bonus (355) 355 TOTAL SCORE: 9268 Bonus ------- High Alert Combat Kills 55 Met Data Miner 300 Cogmind --------- Core Integrity 0/850 Matter 295/300 Energy 14/100 System Corruption 17% Temperature Cool (0) Movement Rolling (160) Ox4 Location -6/Data Miner Parts ------- > --- POWER (2) -------- (None) > --- PROPULSION (5) --- Compact Wheel > --- UTILITY (6) ------ Huge Storage Unit Advanced Signal Interpreter > --- WEAPON (2) ------- (None) > --- INVENTORY (25) --- Nuclear Core Angular Momentum Engine Huge Storage Unit Compact Battery (200) Improved Medium Armor Plating Reactive Plating Drone Bay (2/2) Drone Bay (2/2) Improved EM Pulse Cannon Cooled Particle Cannon Cooled Particle Cannon Cooled Particle Cannon Cooled Particle Cannon Heavy Plasma Cannon Missile Launcher Missile Launcher Missile Launcher Missile Launcher Precision Grenade Launcher Precision Grenade Launcher Peak State ------------ > --- POWER ------------ Cooled Ion Engine Fission Core > --- PROPULSION ------- Light Treads Medium Treads Medium Treads Medium Treads Medium Treads > --- UTILITY ---------- Improved Cooling System Improved Cooling System Huge Storage Unit Improved Sensor Array Advanced Signal Interpreter Improved Particle Charger > --- WEAPON ----------- Cooled Particle Cannon Cooled Particle Cannon > --- INVENTORY -------- Nuclear Core Angular Momentum Engine Light Treads Light Treads Wheel Compact Wheel Huge Storage Unit Compact Battery Improved Medium Armor Plating Reactive Plating Drone Bay Drone Bay Improved EM Pulse Cannon Cooled Particle Cannon Cooled Particle Cannon Cooled Particle Cannon Cooled Particle Cannon Heavy Plasma Cannon Missile Launcher Missile Launcher Missile Launcher Missile Launcher Precision Grenade Launcher Precision Grenade Launcher [Rating: 65] Favorites ----------- Power Cooled Ion Engine Engine Cooled Ion Engine Power Core Light Nuclear Core Propulsion Light Treads Treads Light Treads Leg VSS Leg Wheel Compact Wheel Utility Improved Heat Sink Device Improved Heat Sink Storage Huge Storage Unit Processor Advanced Targeting Computer Protection Hardened Medium Armor Plating Weapon Cooled Particle Cannon Energy Gun Pulse Rifle Energy Cannon Cooled Particle Cannon Ballistic Gun Light Assault Rifle Launcher Precision Grenade Launcher Build | -11 -10 -9 -8 -7 -6 -6 -6 -6 ------- Run | Yrd Mat Mat Mat Fac Fac Low Low Dat Slots Evolved 8 | . . 2 2 2 2 . . . Power 1 | . . . . . 1 . . . Propulsion 3 | . . 1 1 1 . . . . Utility 4 | . . 1 1 1 1 . . . Weapon . | . . . . . . . . . Parts Attached 122 | 6 3 19 26 26 31 . 6 5 Power 10 | 1 . 2 2 3 1 . . 1 Engine 7 | 1 . 2 2 1 1 . . . Core 3 | . . . . 2 . . . 1 Reactor . | . . . . . . . . . Propulsion 48 | 2 2 7 11 8 11 . 3 4 Treads 29 | 2 1 5 8 3 5 . 3 2 Leg 6 | . . . 2 4 . . . . Wheel 13 | . 1 2 1 1 6 . . 2 Hover . | . . . . . . . . . Flight . | . . . . . . . . . Utility 25 | 1 1 4 1 3 12 . 3 . Device 18 | . . 4 . 2 9 . 3 . Storage 2 | 1 1 . . . . . . . Processor 3 | . . . 1 1 1 . . . Hackware . | . . . . . . . . . Protection 2 | . . . . . 2 . . . Artifact . | . . . . . . . . . Weapon 39 | 2 . 6 12 12 7 . . . Energy Gun 14 | 1 . 3 8 2 . . . . Energy Cannon 14 | . . . 1 7 6 . . . Ballistic Gun 1 | 1 . . . . . . . . Ballistic Cannon . | . . . . . . . . . Launcher 10 | . . 3 3 3 1 . . . Special Weapon . | . . . . . . . . . Impact Weapon . | . . . . . . . . . Slashing Weapon . | . . . . . . . . . Piercing Weapon . | . . . . . . . . . Special Melee Weapon . | . . . . . . . . . Unidentified Prototypes 7 | . . . 1 4 2 . . . Corrupted Parts 1 | . . 1 . . . . . . System Corruption 3 | . . 3 . . . . . . Parts Lost 59 | . . 10 13 10 7 . 2 17 Power 7 | . . 1 2 1 . . . 3 Propulsion 29 | . . 3 7 7 4 . . 8 Utility 11 | . . 2 . 1 2 . 2 4 Weapon 12 | . . 4 4 1 1 . . 2 Highest Loss Streak 17 | . . 8 5 3 2 . 2 17 To Critical Strikes . | . . . . . . . . . Average Slot Usage (%) 89 | . 85 79 94 93 85 100 100 92 Engine 10 | . 14 8 8 4 12 13 13 9 Treads 13 | . 17 13 27 10 2 13 25 31 Leg 3 | . . . 3 11 4 . . . Wheel 8 | . 10 9 1 10 11 20 7 . Device 16 | . . 17 18 14 18 20 24 24 Storage 7 | . 14 11 9 7 6 6 6 6 Processor 9 | . . . 7 14 13 13 8 6 Energy Gun 7 | . 14 16 17 5 . . . . Energy Cannon 7 | . . . . 8 12 13 13 10 Ballistic Gun 1 | . 14 2 . . . . . . Peak Build Rating 65 | 6 7 21 28 41 53 52 63 65 Average Rating 35 | 4 6 16 25 34 46 52 58 57 On Entrance 29 | . 6 7 21 28 36 52 52 63 Naked Turns . | . . . . . . . . . Heaviest Build 122 | 13 88 95 101 105 122 114 119 119 Greatest Support 132 | 40 40 20 80 32 36 36 132 132 Greatest Overweight (x) 38 | . 8 8 6 34 38 3 3 4 Average Overweight (x) 3 | . 5 5 1 4 4 3 1 . Largest Inventory Capacity 25 | 8 25 25 25 25 25 25 25 25 Average Capacity 24 | 6 20 25 25 25 25 25 25 25 Most Carried 25 | 6 10 22 25 25 25 24 25 25 Average Carried 21 | 4 8 15 22 24 24 24 24 24 Final Capacity 25 | 8 25 25 25 25 25 25 25 25 Final Carried 25 | 6 10 22 25 24 24 24 25 20 Class Distribution -------------------- 57% | Scavenger-Mutant 42% | Mutant Dominant Class ---------------- Mutant | -10/Materials Mutant | -9/Materials Scavenger-Mutant | -8/Materials Scavenger-Mutant | -7/Factory Scavenger-Mutant | -6/Factory Scavenger-Mutant | -6/Lower Caves Scavenger-Mutant | -6/Lower Caves Scavenger-Mutant | -6/Data Miner Resources | -11 -10 -9 -8 -7 -6 -6 -6 -6 ----------- Run | Yrd Mat Mat Mat Fac Fac Low Low Dat Matter Collected 1648 | 254 59 301 296 245 363 30 100 . Remotely . | . . . . . . . . . Salvage Created 6492 | . 346 648 1477 1213 2360 . 448 . Parts 290 | . 20 47 67 57 83 . 16 . Haulers Intercepted 11 | . 1 3 3 2 2 . . . Recyclers Shooed 21 | . . 2 6 1 12 . . . Parts Field Recycled . | . . . . . . . . . Retrieved Matter . | . . . . . . . . . Parts Self-Destructed . | . . . . . . . . . Prevented . | . . . . . . . . . Kills | -11 -10 -9 -8 -7 -6 -6 -6 -6 ------- Run | Yrd Mat Mat Mat Fac Fac Low Low Dat Combat Hostiles Destroyed 99 | . 9 15 28 23 19 . 5 . Guns 47 | . 9 11 22 5 . . . . Cannons 32 | . . . . 12 15 . 5 . AOE 15 | . . 4 6 5 . . . . Classes Destroyed 16 | . 4 4 4 1 1 . 2 . Worker 7 | . . . 2 1 4 . . . Builder 5 | . . 1 1 2 1 . . . Tunneler 1 | . . . . . 1 . . . Hauler 11 | . 1 3 3 2 2 . . . Recycler 11 | . . . 3 1 7 . . . Operator 3 | . 1 . 2 . . . . . Watcher 6 | . . 2 2 . 2 . . . Swarmer 22 | . 3 4 4 7 4 . . . Grunt 48 | . 6 6 17 11 8 . . . Brawler 1 | . . . 1 . . . . . Duelist 1 | . . 1 . . . . . . Sentry 13 | . . 4 5 2 2 . . . Hunter 3 | . . . 1 2 . . . . Programmer 6 | . . . . 1 5 . . . Samaritan 4 | . . . . . . . 4 . Thug 1 | . . . . . . . 1 . Savage 3 | . . . . . . . 3 . Mutant 1 | . . . . . . . 1 . Best Kill Streak 8 | . 3 4 8 5 6 . 3 . Combat Bots Only 5 | . 3 4 5 5 4 . 3 . Max Kills in Single Turn 4 | . 1 1 4 3 1 . 1 . Gunslinging 1 | . . . . 1 . . . . Exploded 3 | . . 1 3 2 . . . . Melee . | . . . . . . . . . Uniques/NPCs Destroyed . | . . . . . . . . . Combat | -11 -10 -9 -8 -7 -6 -6 -6 -6 -------- Run | Yrd Mat Mat Mat Fac Fac Low Low Dat Hostile Shots Fired 670 | . 40 88 165 183 128 . 11 55 Missed 219 | . 12 20 52 83 38 . 1 13 Damage Taken 8210 | . 301 1327 1764 1339 1375 . 145 1959 Core 1609 | . 10 302 164 273 264 . 21 575 Absorbed by Shields . | . . . . . . . . . Regen/Repaired (Parts) 114 | . . 114 . . . . . . Core Remaining (%) 70 | 100 96 24 70 61 . . . . Volleys Fired 416 | . 40 57 120 66 98 . 28 7 Largest 2 | . 2 2 2 2 2 . 2 2 Hottest 160 | . 70 126 131 160 160 . 60 60 Shots Fired 817 | . 79 106 235 132 195 . 55 15 Gun 451 | . 79 100 227 45 . . . . Cannon 347 | . . . 1 81 195 . 55 15 Launcher 19 | . . 6 7 6 . . . . Special . | . . . . . . . . . Kinetic 60 | . 40 20 . . . . . . Thermal 722 | . 39 64 228 126 195 . 55 15 Explosive 19 | . . 6 7 6 . . . . Electromagnetic 16 | . . 16 . . . . . . Robot Hit Streak 29 | . 9 15 29 13 17 . 24 5 Robot Miss Streak 5 | . 4 2 4 4 5 . 2 3 Penetration Max . | . . . . . . . . . Secondary Targets 4 | . 2 . 1 1 . . . . Max Gunslinging Chain 1 | . 1 . 1 1 . . . . Shots Hit Robots 580 | . 48 83 177 83 140 . 41 8 Core Hits 238 | . 21 29 71 45 57 . 14 1 Critical Kills 3 | . . . . 1 2 . . . Critical Parts Destroyed . | . . . . . . . . . Critical Strikes 18 | . 2 4 9 1 2 . . . Burn 14 | . 2 3 9 . . . . . Meltdown 3 | . . . . 1 2 . . . Destroy 1 | . . 1 . . . . . . Melee Attacks . | . . . . . . . . . Impact . | . . . . . . . . . Slashing . | . . . . . . . . . Piercing . | . . . . . . . . . Sneak Attacks . | . . . . . . . . . Combat Hostiles . | . . . . . . . . . Follow-up Attacks . | . . . . . . . . . Damage Inflicted 13672 | . 485 1420 4037 2455 3892 . 1207 176 Guns 5504 | . 485 1112 3174 733 . . . . Cannons 6550 | . . . 21 1254 3892 . 1207 176 Explosions 1611 | . . 308 835 468 . . . . Melee . | . . . . . . . . . Ramming 7 | . . . 7 . . . . . Kinetic 295 | . 196 99 . . . . . . Thermal 11625 | . 289 879 3195 1987 3892 . 1207 176 Explosive 1578 | . . 275 835 468 . . . . Electromagnetic 167 | . . 167 . . . . . . Impact . | . . . . . . . . . Slashing . | . . . . . . . . . Piercing . | . . . . . . . . . Highest Corruption 17 | . . 3 . . 7 7 17 17 Average Corruption 5 | . . 3 . . 3 7 14 17 Corruption Purged . | . . . . . . . . . Corruption Blocked . | . . . . . . . . . Effects 88 | . . 14 . . 30 13 23 8 Message Errors 17 | . . 2 . . 3 6 4 2 Matter Fused 18 | . . 5 . . 6 . 6 1 Heat Flow Errors 10 | . . 2 . . 3 1 2 2 Energy Discharges 14 | . . 3 . . 5 1 3 2 Data Loss (minor) 16 | . . . . . 7 4 5 . Data Loss (major) 5 | . . . . . 3 1 1 . Misfires 3 | . . 1 . . 1 . . 1 Alerts 1 | . . . . . . . 1 . Weapon Failures 4 | . . 1 . . 2 . 1 . Overload Shots . | . . . . . . . . . Overflow Damage 187 | . . 17 29 . 38 . 103 . Projectiles 141 | . . . . . 38 . 103 . Explosions 46 | . . 17 29 . . . . . Melee . | . . . . . . . . . Knockbacks . | . . . . . . . . . Impact . | . . . . . . . . . Kinetic . | . . . . . . . . . Secondary . | . . . . . . . . . Self-Inflicted Damage 371 | . . 266 18 87 . . . . Shots 8 | . . 6 1 1 . . . . Rammed 2 | . . . 2 . . . . . Targets Rammed 2 | . . . 2 . . . . . Kicked . | . . . . . . . . . Crushed . | . . . . . . . . . Highest Temperature 319 | . 222 239 16 319 191 180 125 74 Average Temperature 58 | . 63 54 10 36 79 108 76 53 Received Heat Transfer 1971 | . 138 309 783 324 399 . 18 . Siege Activations . | . . . . . . . . . Robots Corrupted . | . . . . . . . . . Combat Hostiles . | . . . . . . . . . Parts Fried . | . . . . . . . . . Impact Corruptions . | . . . . . . . . . Robots Melted 6 | . . . . 1 5 . . . Combat Hostiles 5 | . . . . 1 4 . . . Parts Melted 53 | . 4 4 18 8 15 . 4 . Heat Transferred 21820 | . 999 2072 7178 3793 5965 . 1517 296 Parts Sabotaged . | . . . . . . . . . Parts Stolen . | . . . . . . . . . Parts Stripped . | . . . . . . . . . Power Chain Reactions 1 | . . 1 . . . . . . Alert | -11 -10 -9 -8 -7 -6 -6 -6 -6 ------- Run | Yrd Mat Mat Mat Fac Fac Low Low Dat Peak Influence 511 | . 205 347 466 511 280 . . . Initial 240 | . . 46 111 189 240 . . . Average 217 | . 95 208 315 243 182 . . . Maximum Alert Level 2 | . 1 1 2 2 1 . . . Low Security (%) 38 | 100 95 34 8 34 46 . . . Level 1 55 | . 4 65 71 55 53 . . . Level 2 6 | . . . 19 9 . . . . Level 3 . | . . . . . . . . . Level 4 . | . . . . . . . . . Level 5 . | . . . . . . . . . High Security . | . . . . . . . . . Max Security . | . . . . . . . . . Squads Dispatched 16 | . 2 . 2 4 8 . . . Investigation 2 | . 1 . 1 . . . . . Extermination 5 | . . . . 1 4 . . . Reinforcement 9 | . 1 . 1 3 4 . . . Assault . | . . . . . . . . . Garrison . | . . . . . . . . . Intercept . | . . . . . . . . . Searches Triggered . | . . . . . . . . . Construction Impeded 1 | . . . . 1 . . . . Haulers Reinforced 5 | . . . . 2 3 . . . Active Scanning Responses . | . . . . . . . . . Cargo Convoy Interrupts 1 | . . . . 1 . . . . Stealth | -11 -10 -9 -8 -7 -6 -6 -6 -6 --------- Run | Yrd Mat Mat Mat Fac Fac Low Low Dat Distress Signals 12 | . 1 3 5 1 2 . . . Communications Jammed . | . . . . . . . . . Distress Signals . | . . . . . . . . . Times Spotted 164 | . 17 25 42 44 24 . 7 5 Peak Tracking Total 12 | . 5 5 5 12 6 . 5 4 Tactical Retreats 14 | . 1 4 5 2 1 . 1 . Traps | -11 -10 -9 -8 -7 -6 -6 -6 -6 ------- Run | Yrd Mat Mat Mat Fac Fac Low Low Dat Traps Triggered 10 | . 1 . 2 . 7 . . . Indirectly . | . . . . . . . . . Trap Hack Attempts . | . . . . . . . . . Triggered . | . . . . . . . . . Disarmed . | . . . . . . . . . Reprogrammed . | . . . . . . . . . Reused . | . . . . . . . . . Traps Extracted . | . . . . . . . . . Installed . | . . . . . . . . . Triggered . | . . . . . . . . . Machines | -11 -10 -9 -8 -7 -6 -6 -6 -6 ---------- Run | Yrd Mat Mat Mat Fac Fac Low Low Dat Machines Disabled 6 | . . 2 . 3 . . . 1 Max in Single Turn 2 | . . 2 . 1 . . . 1 Garrison Access 2 | . . . . . 2 . . . Machines Repaired . | . . . . . . . . . Machines Dismantled . | . . . . . . . . . Machines Sabotaged . | . . . . . . . . . Overloaded Fab Kills . | . . . . . . . . . Hacking | -11 -10 -9 -8 -7 -6 -6 -6 -6 --------- Run | Yrd Mat Mat Mat Fac Fac Low Low Dat Machines Accessed 25 | . 2 4 5 3 10 . 1 . Terminals 16 | . 2 3 5 2 3 . 1 . Fabricators . | . . . . . . . . . Repair Stations 1 | . . 1 . . . . . . Recycling Units 5 | . . . . 1 4 . . . Scanalyzers 1 | . . . . . 1 . . . Garrison Access 2 | . . . . . 2 . . . Total Hacks 55 | . 3 15 12 5 19 . 1 . Successful 30 | . 2 10 5 2 10 . 1 . Failed 25 | . 1 5 7 3 9 . . . Catastrophic 7 | . 1 . 2 2 2 . . . Database Lockouts . | . . . . . . . . . Manual 18 | . . 5 5 2 6 . . . Terminals 38 | . 3 13 12 4 5 . 1 . Fabricators . | . . . . . . . . . Repair Stations 2 | . . 2 . . . . . . Recycling Units 7 | . . . . 1 6 . . . Scanalyzers 6 | . . . . . 6 . . . Garrison Access 2 | . . . . . 2 . . . Terminal Hacks 14 | . 2 6 4 . 1 . 1 . Record 2 | . . . . . 1 . 1 . Robot Analysis 1 | . . . 1 . . . . . Level Access Points 1 | . . . 1 . . . . . Branch Access Points 1 | . . 1 . . . . . . Terminal Index 1 | . . 1 . . . . . . Alert Level 2 | . 1 1 . . . . . . Locate Traps 1 | . 1 . . . . . . . Dispatch Records 1 | . . 1 . . . . . . Registered Components 2 | . . 1 1 . . . . . Registered Prototypes 1 | . . 1 . . . . . . Zone Layout 1 | . . . 1 . . . . . Fabricator Hacks . | . . . . . . . . . Repair Station Hacks 2 | . . 2 . . . . . . Scan Component 1 | . . 1 . . . . . . Repair 1 | . . 1 . . . . . . Recycling Unit Hacks 4 | . . . . 1 3 . . . Report Inventory 1 | . . . . . 1 . . . Retrieve Components 3 | . . . . 1 2 . . . Scanalyzer 4 | . . . . . 4 . . . Insert Component 2 | . . . . . 2 . . . Analyze 2 | . . . . . 2 . . . Garrison Access Hacks 2 | . . . . . 2 . . . Seal Access 2 | . . . . . 2 . . . Unauthorized Hacks 4 | . . 2 1 1 . . . . Terminals 4 | . . 2 1 1 . . . . Botnet 4 | . . 2 1 1 . . . . Fabricators . | . . . . . . . . . Repair Stations . | . . . . . . . . . Recycling Units . | . . . . . . . . . Scanalyzers . | . . . . . . . . . Garrison Access . | . . . . . . . . . Data Cores Recovered 1 | . . . 1 . . . . . Used . | . . . . . . . . . Hacking Detections 18 | . 2 3 5 2 5 . 1 . Full Trace Events 1 | . . . 1 . . . . . Feedback Events . | . . . . . . . . . Feedback Blocked . | . . . . . . . . . Robot Schematics Acquired . | . . . . . . . . . Robots Built . | . . . . . . . . . Authchips . | . . . . . . . . . Time . | . . . . . . . . . Total Robot Build Rating . | . . . . . . . . . Part Schematics Acquired 2 | . . . . . 2 . . . Parts Built . | . . . . . . . . . Authchips . | . . . . . . . . . Time . | . . . . . . . . . Total Part Build Rating . | . . . . . . . . . Parts Repaired 1 | . . 1 . . . . . . Time 26 | . . 26 . . . . . . Parts Recycled . | . . . . . . . . . Recycled Matter . | . . . . . . . . . Retrieved Matter . | . . . . . . . . . Retrieved Components 15 | . . . . 10 5 . . . Parts Scanalyzed 2 | . . . . . 2 . . . Part Schematics Acquired 2 | . . . . . 2 . . . Parts Damaged 1 | . . . . . 1 . . . Bothacking | -11 -10 -9 -8 -7 -6 -6 -6 -6 ------------ Run | Yrd Mat Mat Mat Fac Fac Low Low Dat Used RIF Installer . | . . . . . . . . . Robots Hacked . | . . . . . . . . . Non-combat . | . . . . . . . . . Combat . | . . . . . . . . . Robot Hacks Applied . | . . . . . . . . . Relay Couplers Released . | . . . . . . . . . Fabnet Peak Effective % . | . . . . . . . . . Robots Rewired 1 | . . . . 1 . . . . Allies Hacked . | . . . . . . . . . Hacks Repelled . | . . . . . . . . . Allies | -11 -10 -9 -8 -7 -6 -6 -6 -6 -------- Run | Yrd Mat Mat Mat Fac Fac Low Low Dat Total Allies 1 | . . . . 1 . . . . Largest Group 1 | . . . . 1 . . . . Highest-Rated Group 12 | . . . . 12 . . . . Highest-Rated Ally 12 | . . . . 12 . . . . Total Orders . | . . . . . . . . . Ally Attacks 4 | . . . . 4 . . . . Total Damage 31 | . . . . 31 . . . . Kills . | . . . . . . . . . Allies Corrupted . | . . . . . . . . . Allies Melted . | . . . . . . . . . Intel | -11 -10 -9 -8 -7 -6 -6 -6 -6 ------- Run | Yrd Mat Mat Mat Fac Fac Low Low Dat Robot Analysis Total 1 | . . . 1 . . . . . Derelict Logs Recovered 1 | . . . . . . 1 . . Drone Launches . | . . . . . . . . . Drone Recoveries . | . . . . . . . . . Exploration | -11 -10 -9 -8 -7 -6 -6 -6 -6 ------------- Run | Yrd Mat Mat Mat Fac Fac Low Low Dat Turns Passed 8718 | 93 596 967 1803 1189 2939 443 554 134 Spaces Moved 3792 | 52 246 375 557 562 1296 339 301 64 Core 10 | 4 . . . 1 5 . . . Treads 841 | 48 64 17 452 . 9 . 188 63 Legs 76 | . . . . . 76 . . . Wheels 2865 | . 182 358 105 561 1206 339 113 1 Hover . | . . . . . . . . . Flight . | . . . . . . . . . Fastest Speed 50 | 50 160 175 175 130 116 131 131 160 Average Speed 182 | 151 189 190 242 166 184 131 149 163 Slowest Speed 1950 | 160 200 480 320 1750 1950 131 160 240 Overloaded Moves . | . . . . . . . . . Propulsion Burnouts . | . . . . . . . . . Robots Hopped . | . . . . . . . . . Cave-ins Triggered . | . . . . . . . . . Exploration Rate (%) 41 | 4 46 37 49 19 34 65 50 68 Regions Visited 8 Branch Regions 3 Pre-discovered Areas . | . . . . . . . . . Known Exits Taken 5 | . . . 1 1 1 1 1 . Unknown Exits Taken 3 | 1 1 1 . . . . . . Scrap Searched 5 | . . . . . . 4 1 . Spaces Dug 1 | . . . . . 1 . . . Terrain Destroyed 134 | . . 36 60 23 6 . 8 1 Melee . | . . . . . . . . . Projectile 15 | . . . . . 6 . 8 1 AOE 119 | . . 36 60 23 . . . . Terrain Rammed . | . . . . . . . . . Walls Destroyed . | . . . . . . . . . Machines Disabled . | . . . . . . . . . Actions | -11 -10 -9 -8 -7 -6 -6 -6 -6 --------- Run | Yrd Mat Mat Mat Fac Fac Low Low Dat Total 4793 | 64 305 525 768 708 1653 338 353 79 Wait 309 | . 8 48 40 16 185 . 9 3 Move 3784 | 51 245 374 556 561 1295 338 300 64 Hop . | . . . . . . . . . Pick Up 98 | 7 6 24 21 13 21 . 6 . Fast Attach 35 | 5 . 6 3 7 14 . . . Attach 42 | 1 . 12 15 3 4 . 2 5 Detach 2 | . . 1 . . 1 . . . Swap 45 | . 3 1 8 16 13 . 4 . Drop 50 | . 3 2 3 16 22 . 4 . Fire 416 | . 40 57 120 66 98 . 28 7 Melee . | . . . . . . . . . Ram . | . . . . . . . . . Kick . | . . . . . . . . . Crush 2 | . . . 2 . . . . . Escape Stasis . | . . . . . . . . . Rewire 10 | . . . . 10 . . . . Trap . | . . . . . . . . . Miscellaneous . | . . . . . . . . . Route ------- -11/Scrapyard -10/Materials (discovered 2 exits: *Mat / [*Min]) -9/Materials (discovered 4 exits: *Mat x2 / *Min x2) -8/Materials (discovered 3 exits: *Fac x3) -7/Factory -6/Factory (discovered 2 exits: *Fac / *Low) -6/Lower Caves -6/Lower Caves (discovered 2 exits: *Fac / *Dat) -6/Data Miner (discovered 1 exit: [*Pro]) History --------- Turn | Location | Event 19 | -11/Scrapyard | Discovered new exit (range 15) 94 | -11/Scrapyard | Entered Materials 300 | -10/Materials | Build established: Mutant 393 | -10/Materials | Discovered new exit (range 6) 646 | -10/Materials | Discovered new exit (range 9) 690 | -10/Materials | Entered another Materials area 690 | -9/Materials | Evolved 2 slots: Propulsion x1, Utility x1 841 | -9/Materials | Identified exit to Mines 899 | -9/Materials | Core integrity fell below 50% 924 | -9/Materials | Lost 8 parts (1p2n2u3w) 1192 | -9/Materials | Discovered new exit (range 16) 1270 | -9/Materials | Repaired Lgt. Treads 1591 | -9/Materials | Discovered new exit (range 10) 1657 | -9/Materials | Entered another Materials area 1657 | -8/Materials | Evolved 2 slots: Propulsion x1, Utility x1 2162 | -8/Materials | Build established: Scavenger-Mutant 2618 | -8/Materials | Lost 5 parts (1p3n1w) 3155 | -8/Materials | Lost 3 parts (2n1w) 3256 | -8/Materials | Identified exit to Factory 3398 | -8/Materials | Build established: Mutant 3460 | -8/Materials | Entered Factory 3460 | -7/Factory | Evolved 2 slots: Propulsion x1, Utility x1 3721 | -7/Factory | Lost 3 parts (2n1u) 4001 | -7/Factory | Build established: Scavenger-Mutant 4529 | -7/Factory | Discovered new exit (range 15) 4558 | -7/Factory | Identified exit to Factory 4642 | -7/Factory | Cargo convoy interrupted 4649 | -7/Factory | Entered another Factory area 4649 | -6/Factory | Evolved 2 slots: Power x1, Utility x1 4679 | -6/Factory | Lost 3 parts (3n) 4956 | -6/Factory | Build established: Mutant 5749 | -6/Factory | Build established: Scavenger-Mutant 6255 | -6/Factory | Build established: Mutant 6770 | -6/Factory | Build established: Scavenger-Mutant 6782 | -6/Factory | Discovered new exit (range 15) 6811 | -6/Factory | Identified exit to Factory 7099 | -6/Factory | Found Prototype Launcher 7099 | -6/Factory | Identified Rocket Array 7500 | -6/Factory | Discovered new exit (range 3) 7503 | -6/Factory | Identified exit to Lower Caves 7588 | -6/Factory | Entered Lower Caves 7910 | -6/Lower Caves | Encountered a Warlord checkpoint 7993 | -6/Lower Caves | Learned Factory terminal intel 8017 | -6/Lower Caves | Discovered new exit (range 12) 8030 | -6/Lower Caves | Identified exit to Lower Caves 8031 | -6/Lower Caves | Entered another Lower Caves area 8039 | -6/Lower Caves | Encountered a Warlord checkpoint 8045 | -6/Lower Caves | Discovered exit to Factory (range 15) 8141 | -6/Lower Caves | Attacked by a faux Warlord 8197 | -6/Lower Caves | System corruption reached 10% 8580 | -6/Lower Caves | Discovered new exit (range 3) 8582 | -6/Lower Caves | Identified exit to Data Miner 8585 | -6/Lower Caves | Entered Data Miner 8585 | -6/Data Miner | Discovered new exit (range 6) 8619 | -6/Data Miner | Met Data Miner 8639 | -6/Data Miner | Data Conduit disabled 8700 | -6/Data Miner | Core integrity fell below 50% 8709 | -6/Data Miner | Core integrity fell below 20% 8719 | -6/Data Miner | Destroyed by Enhanced Grunt with Neutron Cannon Last Messages --------------- 08677_ Cld. Ion Engine destroyed. 08680_ System corrupted: Matter fused (-10). 08684_ Cld. Particle Cannon destroyed. 08689_ Lgt. Treads destroyed. 08692_ Cld. Particle Cannon destroyed. 08695_ Imp. Particle Charger destroyed. 08696_ Cld. Ion Engine destroyed. 08698_ System corrupted: Heat flow error (+110). 08701_ Imp. Cooling System destroyed. 08704_ Med. Treads destroyed. 08704_ Fission Core destroyed. 08708_ Med. Treads destroyed. 08709_ Imp. Cooling System destroyed. 08712_ Med. Treads destroyed. 08712_ Lgt. Treads destroyed. 08713_ C:OGP,CN,=YQWGAFO6YXG0#YQXQQQ>:GHTTJNQ 08714_ Lgt. Treads destroyed. 08717_ Imp. Sensor Array destroyed. 08717_ Med. Treads destroyed. 08717_ Wheel destroyed. Map ----- +----------------------------------------------------+ | | | | | | | | | | | | | | | | | | | | | | | | | | | | | ????????????????????????????????????????????????? | | ????????????????????????????????????????????????? | | ????????????????????????????????????????????????? | | ????????????????????????????????????????????????? | | ?????????????????????????????????????####???????? | | ??????????###########?????##?#?????### #???????? | | ???????""""""""" """###### # #?#??## #???????? | | ???????"""""" "" """ "; # # # ## < ##???????? | | ???????"""""" ######??? | | ??????"""" #??? | | ??????"""" g #??? | | ??????""" g @ #??? | | ??????"""" g ##??? | | ??????"""" g " """"""""""""""#####???? | | ??????""""" """"###############???????? | | ???????"""" """"###?????????????????????? | | ???????"""""" ;####???????????????????????? | | ???????#####"#; ##??????????????????????????? | | ???????????#"### #???????????????????????????? | | ???????????#??#; #???????????????????????????? | | ??????????????# #???????????????????????????? | | ?????????????## #???????????????????????????? | | ?????????????# "#???????????????????????????? | | ?????????????### "#???????????????????????????? | | ???????????????# "#???????????????????????????? | | ???????????????# ""#??????????????????????????? | | ??????????????# ""#??????????????????????????? | | ?????????????#"X ""#??????????????????????????? | | ????????????""" "#??????????????????????????? | | ???????????"""" X""??????????????????????????? | | ???????????#"#"X "#??????????????????????????? | | ?????????????## X""??????????????????????????? | | ??????????????## "#??????????????????????????? | | ???????????????######???????????????????????????? | | ????????????????????????????????????????????????? | | ????????????????????????????????????????????????? | +----------------------------------------------------+ Best States ------------- Heat Dissipation 91 Energy Generation 27 Energy Capacity 490 Matter Stores 300 Matter Capacity 300 Sight Range 16 Robot Scan Range 15 Terrain Scan Density 10 Armor Coverage 225 Evasion (%) 40 Targeting Accuracy 8 Recoil Reduction 5 Particle Charging 20 Item Schematics ----------------- Med. Treads | -6/Factory | Scanalyzed Rocket Array | -6/Factory | Scanalyzed Robot Schematics ------------------ None Fabricated ------------ Nothing Alien Tech Used ----------------- None Achievements -------------- None Challenges ------------ None Game ------ Seed TeslaDisassembledKatana Manual? 0 Play Time 01:00:35 Cumulative 120.7 hours Start 2025.01.11 @ 17:14:02 End 2025.01.11 @ 19:27:03 Sessions 1 Manual Loads 0 Difficulty Rogue Special Mode None Game No. 109 Rogue 109 Adventurer 0 Explorer 0 Win Type - Total 3 Types 1/0/1/1/0/0/0/0/0 Lore% 64 Gallery% 53 Achievement% 51 Wizard Run 0 Options --------- Layout 1 ASCII 0 Keyboard 1 Movement Arrows Keybinds 0 Fullscreen 1 Font 24/Smallcaps Map View 50x35 Zoom Use 0% Tactical HUD 1 Map Filters NONE Filters NONE Steam 1 RUN: 11913c18-2fd0-4235-a4e0-e2b17576851e